bitfinex/quotes_ETHUSD_20250715
["timestamp","ask_amount","ask_price","bid_price","bid_amount"]
[1752538085736,7.973,3009.1,3009.0,5.15009163]
[1752538086071,13.021,3009.1,3009.0,5.15009163]
[1752538086633,13.022,3009.1,3009.0,5.15009163]
[1752538089599,13.022,3009.1,3009.0,10.87426356]
[1752538089745,0.002,3009.8,3009.1,0.7911]
[1752538090078,5.046,3009.7,3009.4,3.32285022]
[1752538090581,5.046,3009.7,3009.6,0.1656]
[1752538091145,5.07092759,3009.7,3009.6,0.1656]
[1752538092337,8.39351788,3009.7,3009.6,0.1656]
[1752538092450,5.046,3009.7,3009.6,0.1656]
[1752538092649,5.07092759,3009.7,3009.6,0.1656]
[1752538095652,8.39351788,3009.7,3009.6,0.1656]
[1752538095897,8.36859029,3009.7,3009.6,0.1656]
[1752538098291,9.61789804,3009.7,3009.6,0.1656]
[1752538103941,5.046,3009.7,3009.6,0.1656]
[1752538104239,8.39351788,3009.7,3009.6,0.1656]
[1752538104430,8.36859029,3009.7,3009.6,0.1656]
[1752538106846,5.041,3009.7,3009.6,0.1656]
[1752538107525,5.06592759,3009.7,3009.6,0.1656]
[1752538108842,8.38851788,3009.7,3009.6,0.1656]
[1752538109050,3.32259029,3009.7,3009.6,0.1656]
[1752538109249,8.36159029,3009.7,3009.6,0.1656]
[1752538109924,5.039,3009.7,3009.6,0.1656]
[1752538111446,0.002,3009.8,3009.6,0.1656]
[1752538111636,0.002,3009.8,3009.7,3.32259029]
[1752538111838,5.041,3009.8,3009.7,3.32259029]
[1752538114117,0.002,3009.8,3009.7,3.32259029]
[1752538114319,5.04,3009.8,3009.7,3.32259029]
[1752538114518,0.002,3009.8,3009.7,3.32259029]
[1752538114714,0.002,3009.8,3009.7,4.07870832]
[1752538114964,0.002,3009.8,3009.7,4.90803422]
[1752538115168,5.041,3009.8,3009.7,4.90803422]
[1752538115345,5.041,3009.8,3009.7,4.87480832]
[1752538116370,5.041,3009.8,3009.7,4.11869029]
[1752538116740,5.041,3009.8,3009.6,0.1656]
[1752538117683,5.041,3009.8,3009.0,13.80744439]
[1752538117684,3.34751788,3009.7,3009.1,0.7977]
[1752538117837,8.36677785,3009.6,3009.1,0.7977]
[1752538118038,0.02492759,3009.5,3009.1,0.7977]
[1752538118238,5.044,3009.4,3009.1,0.7977]
[1752538119081,5.044,3009.4,3009.0,4.76]
[1752538119400,0.8116,3009.2,3008.5,0.001]
[1752538119539,5.06892759,3009.1,3008.5,0.8244]
[1752538119988,3.32338979,3009.0,3008.5,0.8244]
[1752538120150,5.06892759,3008.9,3008.5,4.5631487]
[1752538120343,5.06892759,3008.9,3008.5,1.23923789]
[1752538120676,5.044,3008.9,3008.6,3.3237464]
[1752538121155,0.02492759,3009.1,3008.8,3.32358415]
[1752538121360,0.02492759,3009.3,3008.9,0.7959]
[1752538121663,5.045,3009.2,3009.0,3.32336324]
[1752538122440,5.045,3009.2,3009.1,3.32325279]
[1752538123695,5.045,3009.2,3009.0,3.32331817]
[1752538124349,0.02492759,3009.5,3009.0,3.32331817]
[1752538124586,5.046,3009.4,3009.0,3.32331817]
[1752538124890,5.045,3009.3,3009.0,3.32331817]
[1752538125563,5.06992759,3009.3,3009.0,3.32331817]
[1752538125892,5.06992759,3009.3,3008.9,4.11931943]
[1752538126252,5.06992759,3009.3,3008.9,0.7959]
[1752538126559,3.32330373,3009.1,3008.6,0.7658]
[1752538126775,5.045,3009.0,3008.6,0.7658]
[1752538127548,0.02492759,3008.9,3008.6,0.7658]
[1752538127851,0.02492759,3008.9,3008.8,0.1656]
[1752538128648,3.34840128,3008.9,3008.8,0.1656]
[1752538128902,3.34840128,3008.9,3008.5,0.001]
[1752538128903,3.32369421,3008.8,3008.5,0.001]
[1752538129050,5.07092759,3008.7,3008.5,0.001]
[1752538129460,5.07092759,3008.7,3008.6,0.1656]
[1752538129804,8.3946222,3008.7,3008.6,0.1656]
[1752538130036,5.046,3008.7,3008.6,0.1656]
[1752538131139,5.045,3008.7,3008.6,0.1656]
[1752538131497,0.02492759,3008.9,3008.7,3.32364034]
[1752538131829,5.045,3008.8,3008.6,4.24925913]
[1752538132142,5.045,3008.7,3008.6,4.08365913]
[1752538132422,3.32292744,3009.4,3008.6,4.08365913]
[1752538132423,0.02492759,3009.2,3008.8,3.32358415]
[1752538132582,5.046,3009.1,3008.9,3.32340714]
[1752538132779,5.046,3009.1,3009.0,3.32336324]
[1752538133135,5.047,3009.1,3009.0,6.64967193]
[1752538133501,5.047,3009.1,3009.0,9.97303517]
[1752538134224,5.047,3009.1,3009.0,4.24886324]
[1752538136277,5.047,3009.1,3009.0,3.48896324]
[1752538137749,5.047,3009.1,3009.0,0.1656]
[1752538138943,5.047,3009.1,3009.0,3.48896324]
[1752538139966,5.046,3009.1,3009.0,5.02852101]
[1752538140440,0.02492759,3009.7,3009.0,7.42936492]
[1752538140645,0.002,3009.8,3009.0,7.42936492]
[1752538140646,0.002,3009.8,3009.7,3.32259029]
[1752538140815,5.048,3009.8,3009.7,3.32259029]
[1752538141426,0.002,3009.8,3009.7,3.32259029]
[1752538141647,0.002,3009.8,3009.7,5.47996588]
[1752538141804,0.002,3009.8,3009.7,16.02996588]
[1752538142167,0.042,3009.9,3009.8,3.87247989]
[1752538142310,0.042,3009.9,3009.8,4.69837989]
[1752538142514,0.042,3009.9,3009.8,14.86397989]
[1752538142719,0.042,3009.9,3009.8,17.73703103]
[1752538143978,0.042,3009.9,3009.8,17.98548344]
[1752538144114,0.042,3009.9,3009.8,23.70965537]
[1752538145540,0.042,3009.9,3009.8,17.98548344]
[1752538146928,0.042,3009.9,3009.8,17.43548344]
[1752538147343,0.042,3009.9,3009.8,14.11300355]
[1752538147543,0.042,3009.9,3009.8,10.1656]
[1752538147739,0.042,3009.9,3009.8,13.48807989]
[1752538147939,0.042,3009.9,3009.8,10.1656]
[1752538148140,0.042,3009.9,3009.8,13.48807989]
[1752538149565,5.09,3009.9,3009.8,13.48807989]
[1752538149763,5.09,3009.9,3009.8,15.82264353]
[1752538151782,0.042,3009.9,3009.8,15.82264353]
[1752538153164,0.042,3009.9,3009.8,5.82264353]
[1752538153472,0.042,3009.9,3009.8,3.48807989]
[1752538153877,0.042,3009.9,3009.8,3.52130468]
[1752538154266,0.042,3009.9,3009.8,3.48807989]
[1752538157985,0.8019,3009.9,3009.8,0.1656]
[1752538158878,0.042,3009.9,3009.8,3.48807989]
[1752538159270,0.042,3009.9,3009.8,0.1656]
[1752538159581,0.042,3009.9,3009.8,3.48807989]
[1752538160485,0.042,3009.9,3009.8,0.84998875]
[1752538160685,0.042,3009.9,3009.8,3.48807989]
[1752538161182,0.042,3009.9,3009.8,0.1656]
[1752538161549,0.042,3009.9,3009.8,3.48807989]
[1752538162296,0.042,3009.9,3009.8,0.1656]
[1752538164106,0.042,3009.9,3009.8,3.48807989]
[1752538165890,0.042,3009.9,3009.8,0.1656]
[1752538168796,0.042,3009.9,3009.8,3.48807989]
[1752538169308,5.084,3009.9,3009.8,4.20247144]
[1752538169603,0.042,3009.9,3009.8,4.98164665]
[1752538169806,5.084,3009.9,3009.8,5.01487144]
[1752538170106,5.084,3009.9,3009.8,4.30047989]
[1752538170969,5.084,3009.9,3009.8,3.48807989]
[1752538175887,0.042,3009.9,3009.8,3.48807989]
[1752538176087,5.081,3009.9,3009.8,4.34340468]
[1752538176286,5.081,3009.9,3009.8,5.64929567]
[1752538180617,5.081,3009.9,3009.8,3.48807989]
[1752538182836,5.081,3009.9,3009.8,3.48907989]
[1752538184553,5.081,3009.9,3009.8,0.1666]
[1752538184980,9.20506951,3009.9,3009.8,0.001]
[1752538186120,9.20606951,3009.9,3009.8,0.001]
[1752538186325,10.45909412,3009.9,3009.8,0.001]
[1752538186922,5.8827,3009.9,3009.8,0.001]
[1752538187125,0.8437,3009.9,3009.8,0.1666]
[1752538187327,5.8827,3009.9,3009.8,0.1666]
[1752538187897,0.8437,3009.9,3009.8,3.48907989]
[1752538188132,0.042,3009.9,3009.8,9.21325182]
[1752538188422,5.083,3009.9,3009.8,10.55080803]
[1752538189826,5.085,3009.9,3009.8,10.55080803]
[1752538196204,5.085,3009.9,3009.8,4.8266361]
[1752538198963,5.085,3009.9,3009.8,10.55080803]
[1752538199319,0.042,3009.9,3009.8,10.55080803]
[1752538199629,0.042,3009.9,3009.8,21.87820803]
[1752538205965,0.042,3009.9,3009.8,14.8266361]
[1752538210268,0.042,3009.9,3009.8,0.1666]
[1752538213054,5.079,3009.9,3009.8,3.48907989]
[1752538213262,0.042,3009.9,3009.8,3.48907989]
[1752538227693,0.042,3009.9,3009.8,3.52230468]
[1752538227898,0.042,3009.9,3009.8,4.85531051]
[1752538228918,0.042,3009.9,3009.8,4.82208572]
[1752538229214,0.042,3009.9,3009.8,3.48907989]
[1752538236434,0.042,3009.9,3009.8,0.1666]
[1752538238015,0.042,3009.9,3009.8,3.48907989]
[1752538240074,0.042,3009.9,3009.8,0.1666]
[1752538241697,0.042,3009.9,3009.8,3.48907989]
[1752538241910,0.042,3009.9,3009.8,0.1666]
[1752538245618,0.63214276,3009.9,3009.8,0.1666]
[1752538246021,4.72931227,3009.9,3009.8,0.001]
[1752538247394,4.75423986,3009.9,3009.8,0.001]
[1752538249921,0.84172759,3009.9,3009.8,0.001]
[1752538250122,5.87872759,3009.9,3009.8,0.1666]
[1752538253287,0.84172759,3009.9,3009.8,0.1666]
[1752538253493,0.042,3009.9,3009.8,3.48907989]
[1752538253694,5.079,3009.9,3009.8,3.48907989]
[1752538253889,0.042,3009.9,3009.8,3.48907989]
[1752538254108,5.079,3009.9,3009.8,4.85585806]
[1752538254416,5.079,3009.9,3009.8,4.82263327]
[1752538255925,0.042,3009.9,3009.8,4.82263327]
[1752538256242,5.079,3009.9,3009.8,4.82263327]
[1752538257724,0.042,3009.9,3009.8,4.82263327]
[1752538258029,5.079,3009.9,3009.8,4.82263327]
[1752538260228,0.042,3009.9,3009.8,4.82263327]
[1752538260428,0.042,3009.9,3009.8,5.66075806]
[1752538260729,0.042,3009.9,3009.8,20.97075806]
[1752538260931,0.002,3010.0,3009.9,13.87236951]
[1752538261131,7.972,3010.8,3010.7,3.32148669]
[1752538261317,0.002,3010.8,3010.7,3.32148669]
[1752538261522,0.002,3010.8,3010.7,3.52030155]
[1752538263201,0.002,3010.8,3010.7,3.76888427]
[1752538264632,0.002,3010.8,3010.7,3.73566941]
[1752538264935,0.002,3010.8,3010.7,5.57030247]
[1752538276859,0.002,3010.8,3010.7,3.73566941]
[1752538284004,0.002,3010.8,3010.7,9.45984134]
[1752538285509,1e-08,3010.8,3010.7,10.76824134]
[1752538285791,1e-08,3010.8,3010.7,20.76824134]
[1752538293675,1e-08,3010.8,3010.7,13.73566941]
[1752538293885,1e-08,3010.8,3010.7,21.16556721]
[1752538294086,1e-08,3010.8,3010.7,21.71556721]
[1752538294642,1e-08,3010.8,3010.7,22.52846721]
[1752538295680,1e-08,3010.8,3010.7,16.80429528]
[1752538296009,1e-08,3010.8,3010.7,22.52846721]
[1752538296777,1e-08,3010.8,3010.7,13.73566941]
[1752538297009,0.78150001,3010.8,3010.7,0.41418272]
[1752538297896,0.78150001,3010.8,3010.7,3.73566941]
[1752538298291,0.78150001,3010.8,3010.7,0.41418272]
[1752538298521,0.78150001,3010.8,3010.7,0.1656]
[1752538299216,0.8064276,3010.8,3010.7,0.1656]
[1752538300122,4.12780397,3010.8,3010.7,0.1656]
[1752538300503,4.87670227,3010.8,3010.7,0.1656]
[1752538300922,1.5553259,3010.8,3010.7,0.1656]
[1752538301135,4.12780397,3010.8,3010.7,0.1656]
[1752538301626,14.12780397,3010.8,3010.7,0.1656]
[1752538301921,14.10287638,3010.8,3010.7,0.1656]
[1752538302109,10.78150001,3010.8,3010.7,0.1656]
[1752538302717,15.81550001,3010.8,3010.7,0.1656]
[1752538303125,21.38667289,3010.8,3010.7,0.1656]
[1752538303331,11.38667289,3010.8,3010.7,0.1656]
[1752538308318,11.38097289,3010.8,3010.7,0.1656]
[1752538308524,3.32182415,3010.4,3010.0,0.001]
[1752538308736,5.83472759,3010.3,3010.0,0.001]
[1752538308944,5.83472759,3010.3,3010.0,0.33344241]
[1752538309147,5.83472759,3010.3,3010.2,0.1656]
[1752538309335,9.15665563,3010.3,3010.2,0.1656]
[1752538309532,5.8098,3010.3,3010.2,0.1656]
[1752538309933,5.83472759,3010.3,3010.2,0.1656]
[1752538310836,5.8098,3010.3,3010.2,0.1656]
[1752538311144,5.035,3010.3,3010.2,0.1656]
[1752538311645,0.02492759,3010.5,3010.2,0.1656]
[1752538311960,5.035,3010.4,3010.2,0.1656]
[1752538312163,5.035,3010.4,3010.1,3.32314013]
[1752538312357,5.035,3010.4,3010.3,0.1656]
[1752538312562,0.02492759,3010.5,3010.3,0.1656]
[1752538312773,5.035,3010.4,3010.3,0.1656]
[1752538316833,5.035,3010.4,3010.3,3.48752507]
[1752538317036,1e-08,3010.8,3010.4,3.32172672]
[1752538317345,5.035,3010.7,3010.4,3.32172672]
[1752538317749,5.035,3010.7,3010.6,0.1656]
[1752538317969,5.035,3010.7,3010.6,3.48719702]
[1752538318264,5.035,3010.7,3010.6,0.1656]
[1752538318461,5.035,3010.7,3010.6,3.48719702]
[1752538318632,5.035,3010.7,3010.6,0.1656]
[1752538319364,5.035,3010.7,3010.6,3.48719702]
[1752538319862,1e-08,3010.8,3010.6,3.48719702]
[1752538320069,5.035,3010.7,3010.6,3.48719702]
[1752538320274,1e-08,3010.8,3010.7,3.32148669]
[1752538320433,5.03500001,3010.8,3010.6,4.95824689]
[1752538320632,5.03500001,3010.8,3010.7,3.32148669]
[1752538321672,1e-08,3010.8,3010.7,3.32148669]
[1752538321889,5.03500001,3010.8,3010.7,3.32148669]
[1752538322301,5.03500001,3010.8,3010.6,0.84648997]
[1752538322468,5.03500001,3010.8,3010.6,0.1656]
[1752538324414,0.02492759,3010.7,3010.6,0.1656]
[1752538324720,3.34641428,3010.7,3010.6,0.1656]
[1752538324933,5.97385144,3010.7,3010.6,0.1656]
[1752538325988,4.14531428,3010.7,3010.6,0.1656]
[1752538333405,14.14531428,3010.7,3010.6,0.1656]
[1752538333604,3.3220384,3010.2,3010.1,0.001]
[1752538333915,8.3560384,3010.2,3010.1,0.001]
[1752538334128,8.3560384,3010.2,3010.1,0.1666]
[1752538338767,5.034,3010.2,3010.1,0.1666]
[1752538339073,8.3560384,3010.2,3010.1,0.1666]
[1752538339876,5.034,3010.2,3010.1,0.1666]
[1752538340355,8.3560384,3010.2,3010.1,0.1666]
[1752538341160,5.034,3010.2,3010.1,0.1666]
[1752538342216,8.3560384,3010.2,3010.1,0.1666]
[1752538343964,9.1673384,3010.2,3010.1,0.1666]
[1752538344167,26.14043755,3010.2,3010.1,0.1666]
[1752538344371,15.38226562,3010.2,3010.1,0.001]
[1752538344543,20.41626562,3010.2,3010.1,0.001]
[1752538345849,20.58186562,3010.2,3010.1,0.001]
[1752538357092,14.2989384,3010.2,3010.1,0.001]
[1752538357261,19.1683384,3010.2,3010.1,0.001]
[1752538358256,18.3570384,3010.2,3010.1,0.001]
[1752538359683,13.3220384,3010.2,3010.1,0.001]
[1752538359883,18.3570384,3010.2,3010.1,0.001]
[1752538360682,13.3220384,3010.2,3010.1,0.001]
[1752538360899,18.3570384,3010.2,3010.1,0.001]
[1752538362826,20.54149584,3010.2,3010.1,0.001]
[1752538366139,18.3570384,3010.2,3010.1,0.001]
[1752538367244,13.3220384,3010.2,3010.1,0.001]
[1752538367556,18.3570384,3010.2,3010.1,0.001]
[1752538370351,24.08121033,3010.2,3010.1,0.001]
[1752538372141,24.24681033,3010.2,3010.1,0.001]
[1752538375160,32.21781033,3010.2,3010.1,0.001]
[1752538375665,26.4936384,3010.2,3010.1,0.001]
[1752538375881,32.21781033,3010.2,3010.1,0.001]
[1752538379279,33.04741033,3010.2,3010.1,0.001]
[1752538381257,33.04741033,3010.2,3010.0,0.001]
[1752538381258,13.32214876,3010.1,3010.0,0.001]
[1752538386281,14.12946951,3009.9,3009.8,0.001]
[1752538386587,25.05324144,3009.9,3009.8,0.001]
[1752538387647,25.76974094,3009.9,3009.8,1e-08]
[1752538387906,3.32325279,3009.1,3009.0,0.1656]
[1752538388050,8.38218038,3009.1,3009.0,0.1656]
[1752538388382,8.35725279,3009.1,3009.0,0.1656]
[1752538389054,18.35725279,3009.1,3009.0,0.1656]
[1752538392677,3.32336324,3009.0,3008.8,0.001]
[1752538392876,3.34829083,3009.0,3008.8,0.001]
[1752538394070,8.38329083,3009.0,3008.8,0.001]
[1752538394307,8.35836324,3009.0,3008.8,0.001]
[1752538395484,3.32336324,3009.0,3008.8,0.001]
[1752538395684,8.38229083,3009.0,3008.8,0.001]
[1752538395908,8.35736324,3009.0,3008.8,0.001]
[1752538400128,10.52542575,3009.0,3008.8,0.001]
[1752538400577,20.52542575,3009.0,3008.8,0.001]
[1752538404020,21.29402575,3009.0,3008.8,0.001]
[1752538404509,21.45962575,3009.0,3008.8,0.001]
[1752538407153,21.45962575,3009.0,3008.9,1e-08]
[1752538407315,23.45362575,3009.0,3008.9,1e-08]
[1752538407479,21.45962575,3009.0,3008.9,1e-08]
[1752538415214,27.18479768,3009.0,3008.9,1e-08]
[1752538415609,3.32358415,3008.8,3008.7,1e-08]
[1752538415816,18.38351174,3008.8,3008.7,1e-08]
[1752538416024,18.35858415,3008.8,3008.7,1e-08]
[1752538416947,13.32358415,3008.8,3008.7,1e-08]
[1752538417105,24.87165608,3008.8,3008.7,1e-08]
[1752538417304,27.03971859,3008.8,3008.7,1e-08]
[1752538418821,10.0,3008.5,3008.4,1e-08]
[1752538419020,25.0050875,3008.5,3008.4,1e-08]
[1752538419859,25.5550875,3008.5,3008.4,1e-08]
[1752538420026,26.16957012,3008.5,3008.4,1e-08]
[1752538424679,21.13457012,3008.5,3008.4,1e-08]
[1752538424865,26.16957012,3008.5,3008.4,1e-08]
[1752538427527,28.16457012,3008.5,3008.4,1e-08]
[1752538433366,28.87973548,3008.5,3008.4,1e-08]
[1752538434065,14.81916355,3008.5,3008.4,1e-08]
[1752538434264,24.86317012,3008.5,3008.4,1e-08]
[1752538435175,32.84017012,3008.5,3008.4,1e-08]
[1752538436246,27.80517012,3008.5,3008.4,1e-08]
[1752538436435,32.84017012,3008.5,3008.4,1e-08]
[1752538436952,33.65667012,3008.5,3008.4,1e-08]
[1752538437295,34.372156,3008.5,3008.4,1e-08]
[1752538438912,33.555656,3008.5,3008.4,1e-08]
[1752538439205,27.80517012,3008.5,3008.4,1e-08]
[1752538439410,32.84017012,3008.5,3008.4,1e-08]
[1752538441573,11.46651557,3008.5,3008.4,1e-08]
[1752538441754,7.979,3008.5,3008.4,0.77250001]
[1752538442286,13.014,3008.5,3008.4,4.26212607]
[1752538442894,13.014,3008.5,3008.4,0.93810001]
[1752538445487,16.33791557,3008.5,3008.4,0.93810001]
[1752538452048,16.33791557,3008.5,3008.4,0.16560001]
[1752538452366,28.30408844,3008.5,3008.4,1e-08]
[1752538455966,29.10638844,3008.5,3008.4,1e-08]
[1752538469996,29.65638844,3008.5,3008.4,1e-08]
[1752538470203,3.32446808,3008.0,3007.9,0.001]
[1752538470363,18.54899567,3008.0,3007.9,0.001]
[1752538470563,18.52406808,3008.0,3007.9,0.001]
[1752538471061,13.3245786,3007.9,3007.8,1e-08]
[1752538471256,21.0149234,3007.9,3007.8,1e-08]
[1752538471962,14.63322078,3007.5,3007.4,0.001]
[1752538472162,24.84239271,3007.5,3007.4,0.001]
[1752538472765,19.80739271,3007.5,3007.4,0.001]
[1752538473105,24.84139271,3007.5,3007.4,0.001]
[1752538473265,25.65776497,3007.5,3007.4,0.001]
[1752538474279,19.93359304,3007.5,3007.4,0.001]
[1752538474459,25.65776497,3007.5,3007.4,0.001]
[1752538476816,20.62376497,3007.5,3007.4,0.001]
[1752538476980,25.65876497,3007.5,3007.4,0.001]
[1752538483483,26.20876497,3007.5,3007.4,0.001]
[1752538485089,26.20976497,3007.5,3007.4,0.001]
[1752538487727,26.20976497,3007.5,3007.4,1e-08]
[1752538487926,13.32535248,3007.2,3006.6,0.001]
[1752538488126,26.87949728,3007.2,3006.6,0.001]
[1752538488826,3.32590547,3006.7,3006.6,0.001]
[1752538488988,22.09100499,3006.7,3006.6,0.001]
[1752538489189,21.30590547,3006.7,3006.6,0.001]
[1752538489389,32.0660774,3006.7,3006.6,0.001]
[1752538491126,17.98,3006.7,3006.6,0.001]
[1752538491333,21.30590547,3006.7,3006.6,0.001]
[1752538491539,26.34190547,3006.7,3006.6,0.001]
[1752538491708,21.30590547,3006.7,3006.6,0.001]
[1752538492117,26.34190547,3006.7,3006.6,0.001]
[1752538498408,17.98,3006.7,3006.6,0.001]
[1752538498606,23.016,3006.7,3006.6,0.001]
[1752538498805,23.016,3006.7,3006.6,0.1666]
[1752538500356,17.98,3006.7,3006.6,0.1666]
[1752538500510,23.016,3006.7,3006.6,0.1666]
[1752538500711,26.34190547,3006.7,3006.6,0.1666]
[1752538501324,21.30590547,3006.7,3006.6,0.1666]
[1752538501528,26.34190547,3006.7,3006.6,0.1666]
[1752538501746,21.30590547,3006.7,3006.6,0.1666]
[1752538502113,26.34190547,3006.7,3006.6,0.1666]
[1752538503880,17.98,3006.7,3006.6,0.1666]
[1752538504165,23.016,3006.7,3006.6,0.1666]
[1752538504561,17.98,3006.7,3006.6,0.1666]
[1752538504855,23.016,3006.7,3006.6,0.1666]
[1752538505040,23.016,3006.7,3006.6,0.9593]
[1752538505241,17.98,3006.7,3006.6,0.9593]
[1752538505415,23.016,3006.7,3006.6,0.9593]
[1752538506361,17.98,3006.7,3006.6,0.9593]
[1752538506550,7.98,3006.7,3006.6,1.38783854]
[1752538506745,13.016,3006.7,3006.6,4.28531609]
[1752538507147,7.98,3006.7,3006.6,4.28531609]
[1752538507353,13.016,3006.7,3006.6,4.28531609]
[1752538507567,7.98,3006.7,3006.6,4.28531609]
[1752538507768,13.016,3006.7,3006.6,4.28531609]
[1752538508197,13.016,3006.7,3006.6,5.04645989]
[1752538508995,13.016,3006.7,3006.6,1.7204438]
[1752538510074,7.98,3006.7,3006.6,1.7204438]
[1752538510296,13.016,3006.7,3006.6,1.7204438]
[1752538510453,13.016,3006.7,3006.6,0.9593]
[1752538510989,5.036,3006.7,3006.6,0.9593]
[1752538514478,8.36190547,3006.7,3006.6,0.1666]
[1752538515085,18.36190547,3006.7,3006.6,0.1666]
[1752538515287,19.18790547,3006.7,3006.6,0.001]
[1752538518058,3.32645865,3006.2,3006.1,0.041]
[1752538518259,9.35565865,3006.2,3006.1,0.041]
[1752538518594,20.07162463,3006.2,3006.1,0.041]
[1752538518758,22.13820378,3006.2,3006.1,0.041]
[1752538518959,19.35565865,3006.2,3006.1,0.041]
[1752538519272,13.49205865,3006.2,3006.1,0.041]
[1752538519469,13.32645865,3006.2,3006.1,0.041]
[1752538519668,18.36145865,3006.2,3006.1,0.041]
[1752538519872,10.0,3006.2,3006.1,0.041]
[1752538520195,15.036,3006.2,3006.1,0.2066]
[1752538521004,3.32570394,3006.9,3006.2,0.7939]
[1752538521181,10.0,3006.6,3006.5,0.1656]
[1752538521359,0.8059,3007.3,3006.5,0.1656]
[1752538521693,3.32590547,3006.7,3006.6,0.7939]
[1752538521992,15.02766798,3006.7,3006.6,0.7939]
[1752538522162,15.00274039,3006.7,3006.6,0.7939]
[1752538522362,18.32864586,3006.7,3006.6,0.7939]
[1752538522558,15.00274039,3006.7,3006.6,0.7939]
[1752538523898,9.96674039,3006.7,3006.6,0.7939]
[1752538524085,15.00374039,3006.7,3006.6,0.7939]
[1752538524287,9.96674039,3006.7,3006.6,0.7939]
[1752538524483,15.00274039,3006.7,3006.6,0.7939]
[1752538525598,18.32864586,3006.7,3006.6,0.7939]
[1752538525796,15.00274039,3006.7,3006.6,0.7939]
[1752538527696,15.00474039,3006.7,3006.6,0.7939]
[1752538528003,0.002,3006.7,3006.6,4.11991609]
[1752538528315,5.039,3006.7,3006.6,4.91776646]
[1752538528613,5.039,3006.7,3006.6,4.8845063]
[1752538530100,0.002,3006.7,3006.6,5.68572919]
[1752538533985,0.002,3007.6,3007.5,4.13492078]
[1752538534185,5.039,3007.6,3007.5,4.13492078]
[1752538534392,5.039,3007.6,3007.5,4.30052078]
[1752538535495,5.04,3007.6,3007.5,4.30052078]
[1752538537897,5.038,3007.6,3007.5,4.30052078]
[1752538538215,5.038,3007.6,3007.5,5.06308578]
[1752538539879,0.002,3007.6,3007.5,11.37050791]
[1752538540085,0.002,3007.6,3007.5,11.33725771]
[1752538544420,0.002,3007.6,3007.5,5.61308578]
[1752538548494,0.002,3007.6,3007.5,11.33725771]
[1752538549620,0.002,3007.6,3007.5,5.61308578]
[1752538550953,0.002,3007.6,3007.5,5.06308578]
[1752538558655,0.002,3007.6,3007.5,5.61308578]
[1752538559941,0.002,3008.4,3008.3,3.32413655]
[1752538560131,5.035,3008.4,3008.3,4.10065532]
[1752538560307,5.035,3008.4,3008.3,4.06741396]
[1752538560514,5.035,3008.4,3008.3,4.26625532]
[1752538560712,5.035,3008.4,3008.3,4.23301396]
[1752538560954,5.035,3008.4,3008.3,4.26625532]
[1752538561443,5.035,3008.4,3008.3,4.23301396]
[1752538562357,5.035,3008.4,3008.3,0.1656]
[1752538562745,5.035,3008.4,3008.3,3.48973655]
[1752538562939,5.035,3008.4,3008.3,0.1656]
[1752538563645,8.35902606,3008.4,3008.3,0.1656]
[1752538563811,5.8098,3008.4,3008.3,0.1656]
[1752538564813,5.8108,3008.4,3008.3,0.1656]
[1752538565018,5.036,3008.4,3008.3,0.1656]
[1752538568570,5.45616807,3008.4,3008.3,0.1656]
[1752538570438,9.57152172,3008.4,3008.3,0.1656]
[1752538570637,11.40874411,3008.4,3008.3,0.1656]
[1752538571082,8.08471805,3008.4,3008.3,0.1656]
[1752538571283,6.22256807,3008.4,3008.3,0.1656]
[1752538571584,9.54659413,3008.4,3008.3,0.1656]
[1752538571988,6.22256807,3008.4,3008.3,0.1656]
[1752538572286,9.54659413,3008.4,3008.3,0.1656]
[1752538572977,6.22256807,3008.4,3008.3,0.1656]
[1752538574595,9.54659413,3008.4,3008.3,0.1656]
[1752538577451,10.83384564,3008.4,3008.3,0.1656]
[1752538578464,10.83384564,3008.4,3007.5,10.33509918]
[1752538578465,3.32444155,3008.1,3007.6,3.32488257]
[1752538578663,5.032,3008.0,3007.6,3.32488257]
[1752538579068,5.032,3008.0,3007.9,0.1656]
[1752538583369,5.032,3008.0,3007.9,3.49013984]
[1752538583568,5.032,3008.0,3007.9,4.17494655]
[1752538584997,0.44709566,3008.4,3008.1,3.32435254]
[1752538585212,5.032,3008.3,3007.9,4.17493111]
[1752538585375,5.032,3008.3,3007.9,4.00933111]
[1752538585577,5.032,3008.3,3008.2,0.1656]
[1752538592078,8.38106414,3008.3,3008.2,0.1656]
[1752538592288,8.35613655,3008.3,3008.2,0.1656]
[1752538593202,9.17813655,3008.3,3008.2,0.1656]
[1752538593503,5.854,3008.3,3008.2,0.1656]
[1752538593704,5.87892759,3008.3,3008.2,0.1656]
[1752538594327,5.854,3008.3,3008.2,0.1656]
[1752538595182,5.87892759,3008.3,3008.2,0.1656]
[1752538595522,9.20306414,3008.3,3008.2,0.1656]
[1752538595818,9.17813655,3008.3,3008.2,0.1656]
[1752538597637,16.19494258,3008.3,3008.2,0.1656]
[1752538597841,4.1180399,3007.9,3007.5,1.48754928]
[1752538598044,5.032,3007.8,3007.5,1.48754928]
[1752538598212,8.35675643,3007.8,3007.5,1.48754928]
[1752538598529,8.35675643,3007.8,3007.7,0.1656]
[1752538601232,5.032,3007.8,3007.7,0.1656]
[1752538602755,8.35668914,3007.8,3007.7,0.1656]
[1752538602933,3.32468914,3007.8,3007.7,0.1656]
[1752538603138,5.033,3007.8,3007.7,0.1656]
[1752538603325,3.32462509,3007.9,3007.7,0.1656]
[1752538603633,3.34955268,3007.9,3007.7,0.1656]
[1752538603837,5.033,3007.8,3007.7,0.1656]
[1752538604043,8.35768914,3007.8,3007.7,0.1656]
[1752538605326,5.033,3007.8,3007.7,0.1656]